bitfinex/quotes_SOLUSD_20250817
["timestamp","ask_amount","ask_price","bid_price","bid_amount"]
[1755445492361,10.82213501,195.11,195.1,0.03]
[1755445492986,10.82213501,195.11,195.1,0.71]
[1755445493294,10.82213501,195.11,195.1,0.03]
[1755445493499,3.12080195,195.11,195.1,0.71]
[1755445495193,3.12080195,195.11,195.1,0.03]
[1755445495491,3.12080195,195.11,195.1,0.71]
[1755445496452,3.12080195,195.11,195.1,0.03]
[1755445496653,7.61549175,195.11,195.1,0.03]
[1755445496857,10.82246964,195.11,195.1,0.03]
[1755445498558,10.82246964,195.11,195.1,0.71]
[1755445498871,10.82238814,195.11,195.1,0.03]
[1755445500271,6.98549175,195.11,195.1,0.03]
[1755445500881,3.12080195,195.11,195.1,0.71]
[1755445501269,3.12080195,195.11,195.1,5.83557662]
[1755445501474,3.12080195,195.11,195.1,0.71]
[1755445504596,3.12080195,195.11,195.1,5.83557662]
[1755445505173,3.12080195,195.11,195.1,9.70026642]
[1755445505681,3.12080195,195.11,195.1,5.83557662]
[1755445505884,3.12080195,195.11,195.1,9.70026642]
[1755445506808,3.12080195,195.11,195.1,5.83557662]
[1755445506979,3.12080195,195.11,195.1,36.39]
[1755445507698,3.12080195,195.11,195.1,0.03]
[1755445507899,3.12080195,195.11,195.1,36.39]
[1755445508070,3.12080195,195.11,195.1,37.07]
[1755445508605,3.12080195,195.11,195.1,36.39]
[1755445510300,3.12080195,195.11,195.1,42.19557662]
[1755445511075,3.12080195,195.11,195.1,37.07]
[1755445511404,6.98549175,195.11,195.1,36.39]
[1755445511594,10.82546115,195.11,195.1,36.39]
[1755445511906,10.82554461,195.11,195.1,36.39]
[1755445512504,16.58085853,195.11,195.1,36.39]
[1755445512803,20.03765545,195.11,195.1,0.03]
[1755445514499,20.03765545,195.11,195.06,36.39]
[1755445514500,15.10621557,195.1,195.03,0.03]
[1755445514704,44.97090537,195.05,195.03,0.03]
[1755445514874,41.10621557,195.03,195.02,0.03]
[1755445515074,48.40306535,195.03,195.02,0.03]
[1755445515270,37.76153958,195.03,195.02,0.03]
[1755445515490,11.16153958,195.03,195.02,0.03]
[1755445516107,11.76153958,195.03,195.02,0.03]
[1755445516274,7.70474266,195.03,195.02,0.03]
[1755445516471,11.16153958,195.03,195.02,0.03]
[1755445516673,12.83215895,195.03,195.02,0.03]
[1755445516896,16.28895587,195.03,195.02,0.03]
[1755445517098,31.39517144,195.03,195.02,0.03]
[1755445517404,31.99517144,195.03,195.02,0.03]
[1755445517900,16.28895587,195.03,195.02,0.03]
[1755445518096,16.88895587,195.03,195.02,0.03]
[1755445518397,31.99517144,195.03,195.02,0.03]
[1755445518771,31.99517144,195.03,195.01,0.2]
[1755445518975,11.76153958,195.02,195.01,0.2]
[1755445519571,26.86775515,195.02,195.01,0.2]
[1755445520500,28.5174876,195.02,195.01,0.2]
[1755445520687,27.9174876,195.02,195.01,0.2]
[1755445520882,8.99236901,195.02,195.01,0.2]
[1755445521094,8.94654651,195.02,195.01,0.2]
[1755445521282,8.99236901,195.02,195.01,0.2]
[1755445521996,13.40932707,195.02,195.01,0.2]
[1755445522200,9.59236901,195.02,195.01,0.2]
[1755445522610,8.99236901,195.02,195.01,0.2]
[1755445522797,3.8646898,195.02,195.01,0.2]
[1755445523509,8.99236901,195.02,195.01,0.2]
[1755445526019,3.8646898,195.02,195.01,0.2]
[1755445527395,20.23359966,195.04,195.01,0.9]
[1755445527396,5.12738409,195.04,195.01,0.9]
[1755445527588,3.8646898,195.02,195.01,0.9]
[1755445527813,3.8646898,195.02,195.01,0.2]
[1755445529193,8.99236901,195.02,195.01,0.2]
[1755445530087,24.69858458,195.02,195.01,0.2]
[1755445530698,28.50742575,195.02,195.01,0.2]
[1755445530898,20.74800739,195.07,195.01,0.2]
[1755445530899,10.76610046,195.07,195.01,0.9]
[1755445531224,3.8646898,195.05,195.02,0.7]
[1755445531426,3.8646898,195.05,195.01,0.2]
[1755445531592,3.8646898,195.04,195.02,0.7]
[1755445531921,3.8646898,195.04,195.03,0.7]
[1755445532609,3.8646898,195.04,195.01,0.2]
[1755445532810,3.8646898,195.03,195.01,0.2]
[1755445533015,3.8646898,195.03,195.02,0.7]
[1755445533995,3.8646898,195.03,195.01,0.2]
[1755445534195,3.8646898,195.02,195.01,0.2]
[1755445535545,3.8646898,195.02,195.01,0.9]
[1755445535696,3.8646898,195.03,195.01,0.9]
[1755445535897,5.18693719,195.05,195.02,0.7]
[1755445536096,3.8646898,195.03,195.01,0.9]
[1755445536298,3.8646898,195.02,195.01,0.9]
[1755445536507,3.8646898,195.03,195.01,0.9]
[1755445536740,4.4646898,195.02,195.01,0.2]
[1755445536913,19.57090537,195.02,195.01,0.2]
[1755445537111,23.37984105,195.02,195.01,0.2]
[1755445538006,26.0,195.01,195.0,0.03]
[1755445538207,15.10621557,195.0,194.97,0.03]
[1755445538431,44.97090537,194.98,194.97,0.03]
[1755445538735,90.26881529,194.98,194.97,0.03]
[1755445538905,90.86881529,194.98,194.97,0.03]
[1755445539106,15.10621557,194.97,194.88,0.7]
[1755445539310,3.8646898,194.9,194.88,0.7]
[1755445539527,3.8646898,194.91,194.88,0.7]
[1755445539831,3.8646898,194.9,194.89,0.7]
[1755445540409,3.8646898,194.91,194.89,0.7]
[1755445541013,3.8646898,194.91,194.9,0.7]
[1755445541734,3.8646898,194.91,194.88,0.7]
[1755445542037,3.8646898,194.9,194.89,0.7]
[1755445542406,15.10621557,194.96,194.89,0.7]
[1755445542615,3.8646898,194.93,194.89,5.83094809]
[1755445542836,3.8646898,194.93,194.9,0.7]
[1755445543134,0.68220001,195.0,194.91,3.8646898]
[1755445543354,3.8646898,194.97,194.91,3.8646898]
[1755445543636,3.8646898,194.97,194.92,0.7]
[1755445543841,3.8646898,194.96,194.92,0.7]
[1755445544240,3.8646898,194.96,194.92,5.83026348]
[1755445544426,3.8646898,194.96,194.93,0.7]
[1755445544623,3.8646898,194.95,194.93,0.72]
[1755445544827,3.8646898,194.94,194.93,0.72]
[1755445546027,3.8646898,194.94,194.9,0.72]
[1755445547246,3.8646898,194.94,194.9,5.85065238]
[1755445547547,3.8646898,194.94,194.91,0.72]
[1755445548045,5.12936923,194.96,194.91,0.72]
[1755445548243,5.12936923,194.96,194.87,5.13162621]
[1755445548244,3.80807576,194.95,194.92,0.72]
[1755445548433,3.8646898,194.96,194.92,0.72]
[1755445548631,3.8646898,194.96,194.91,3.8646898]
[1755445548850,31.12849153,194.99,194.93,0.72]
[1755445549035,3.8646898,194.96,194.93,0.72]
[1755445549350,3.8646898,194.96,194.94,0.72]
[1755445549921,3.8646898,194.96,194.92,0.72]
[1755445550121,3.8646898,194.96,194.9,8.9952903]
[1755445550122,3.8646898,194.96,194.93,0.72]
[1755445550851,3.8646898,194.95,194.91,0.72]
[1755445551050,5.1290484,194.97,194.91,0.72]
[1755445551356,15.10621557,194.98,194.91,0.72]
[1755445551357,8.99423392,194.95,194.91,0.72]
[1755445551556,3.8646898,194.94,194.91,0.72]
[1755445551754,3.8646898,194.94,194.92,0.72]
[1755445552054,3.8646898,194.96,194.93,0.72]
[1755445552252,3.81685293,194.95,194.94,0.72]
[1755445552639,0.06,194.97,194.94,0.72]
[1755445552843,3.81673164,194.96,194.94,0.72]
[1755445553149,0.06,194.97,194.94,0.72]
[1755445553452,3.81701635,194.96,194.94,0.72]
[1755445553655,0.06,194.97,194.94,5.84972296]
[1755445553837,3.81701528,194.96,194.95,0.72]
[1755445554221,0.06,194.97,194.95,0.72]
[1755445554854,0.06,194.97,194.94,5.12972296]
[1755445555038,0.06,194.97,194.96,0.72]
[1755445555239,3.87962678,194.97,194.96,0.72]
[1755445555628,8.34431658,194.97,194.91,0.03]
[1755445555834,3.8646898,194.92,194.91,0.03]
[1755445557450,7.6911854,194.92,194.91,0.03]
[1755445558745,11.13708935,194.92,194.91,0.03]
[1755445560173,16.26739922,194.92,194.91,0.03]
[1755445560370,16.86739922,194.92,194.91,0.03]
[1755445560533,31.97361479,194.92,194.91,0.03]
[1755445562043,31.97768711,194.92,194.91,0.03]
[1755445564540,42.3082006,194.92,194.91,0.03]
[1755445565065,42.30590442,194.92,194.91,0.03]
[1755445565438,41.70590442,194.92,194.91,0.03]
[1755445566169,42.30590442,194.92,194.91,0.03]
[1755445566871,41.70590442,194.92,194.91,0.03]
[1755445567364,42.30590442,194.92,194.91,0.03]
[1755445568065,42.30418666,194.92,194.91,0.03]
[1755445569270,41.70418666,194.92,194.91,0.03]
[1755445569847,26.59797109,194.92,194.91,0.03]
[1755445570058,41.70087798,194.92,194.91,0.03]
[1755445570250,41.70087798,194.92,194.91,0.75]
[1755445570251,18.02097036,194.92,194.91,0.75]
[1755445570452,14.15628056,194.92,194.91,5.88057308]
[1755445570658,10.33051349,194.92,194.91,0.75]
[1755445574655,14.19520329,194.92,194.91,0.75]
[1755445575673,14.19520329,194.92,194.91,5.88057308]
[1755445575674,10.33051349,194.92,194.91,5.88057308]
[1755445575875,10.33051349,194.92,194.91,9.74526288]
[1755445577776,10.33051349,194.92,194.91,0.75]
[1755445578151,10.33051349,194.92,194.91,9.74526288]
[1755445580765,10.33051349,194.92,194.91,5.88057308]
[1755445581168,10.33051349,194.92,194.91,9.74526288]
[1755445584163,1e-08,194.92,194.91,9.74526288]
[1755445584368,0.06,194.97,194.94,26.0]
[1755445584573,0.06,194.97,194.96,3.8646898]
[1755445584791,0.06,194.97,194.95,37.01]
[1755445585004,0.06,194.97,194.95,0.65]
[1755445585245,0.06,194.97,194.96,36.36]
[1755445585488,3.9246898,194.97,194.95,36.36]
[1755445587087,4.4646898,194.96,194.95,36.36]
[1755445587389,3.8646898,194.96,194.95,36.36]
[1755445591100,3.9246898,194.97,194.95,36.36]
[1755445591268,0.06,194.97,194.95,36.36]
[1755445591592,3.9246898,194.97,194.95,36.36]
[1755445594202,0.06,194.97,194.96,0.65]
[1755445594408,0.06,194.97,194.96,4.5146898]
[1755445595406,0.06,194.97,194.93,3.8646898]
[1755445595612,3.8646898,194.96,194.94,36.36]
[1755445599321,3.9246898,194.97,194.94,37.01]
[1755445600906,3.9246898,194.97,194.94,0.65]
[1755445601204,3.9246898,194.97,194.95,36.36]
[1755445601703,3.9246898,194.97,194.94,0.65]
[1755445601899,3.9246898,194.97,194.95,36.36]
[1755445602101,0.06,194.97,194.96,0.65]
[1755445602517,0.06,194.97,194.96,4.5146898]
[1755445602825,0.06,194.97,194.96,0.65]
[1755445605298,19.03090537,194.97,194.91,0.03]
[1755445605500,3.8646898,194.92,194.91,0.03]
[1755445606110,3.8646898,194.92,194.91,0.75]
[1755445606303,3.8646898,194.92,194.91,0.03]
[1755445607418,8.99499967,194.92,194.91,0.03]
[1755445607594,12.82616737,194.92,194.91,0.03]
[1755445609503,12.82683989,194.92,194.91,0.03]
[1755445610619,16.27574995,194.92,194.91,0.03]
[1755445611028,16.37574995,194.92,194.91,0.03]
[1755445612334,31.48196552,194.92,194.91,0.03]
[1755445612733,31.38196552,194.92,194.91,0.03]
[1755445613933,31.38292675,194.92,194.91,0.03]
[1755445614716,31.38306806,194.92,194.91,0.03]
[1755445615424,31.58306806,194.92,194.91,0.03]
[1755445620017,31.58098172,194.92,194.91,0.03]
[1755445620432,142.31814183,194.92,194.91,0.03]
[1755445621633,142.11814183,194.92,194.91,0.03]
[1755445621840,118.01692659,194.92,194.91,0.75]
[1755445622047,114.60184991,194.92,194.91,0.75]
[1755445622244,0.06,194.94,194.91,0.75]
[1755445622424,0.06,194.94,194.93,3.8646898]
[1755445622860,0.06,194.94,194.93,4.5846898]
[1755445623560,0.06,194.94,194.93,9.71473648]
[1755445624425,0.06,194.94,194.93,42.21004668]
[1755445624764,0.06,194.94,194.93,46.07473648]
[1755445625954,0.06,194.94,194.93,37.08]
[1755445626646,3.9246898,194.94,194.91,0.03]
[1755445626846,0.06,194.94,194.91,0.03]
[1755445627043,3.8646898,194.93,194.91,0.03]
[1755445627365,3.8646898,194.93,194.91,0.75]
[1755445629126,3.8646898,194.93,194.92,0.72]
[1755445630398,0.06,194.94,194.92,0.72]
[1755445630573,3.8646898,194.93,194.92,0.72]
[1755445630770,3.8646898,194.93,194.91,0.03]
[1755445631073,45.57090537,194.92,194.91,0.03]
[1755445631234,48.4171001,194.92,194.91,0.03]
[1755445631434,52.2470828,194.92,194.91,0.03]
[1755445631641,52.8470828,194.92,194.91,0.03]
[1755445631846,11.14086723,194.92,194.91,0.03]
[1755445632049,7.6946725,194.92,194.91,0.75]
[1755445632263,3.8646898,194.92,194.91,0.03]
[1755445632581,12.82450428,194.92,194.91,0.03]
[1755445639472,31.97728312,194.92,194.91,0.03]
[1755445640174,31.37728312,194.92,194.91,0.03]
[1755445640544,31.37857306,194.92,194.91,0.03]
[1755445641173,16.27247619,194.92,194.91,0.74]
[1755445641373,16.27247619,194.92,194.91,0.03]
[1755445642356,11.14216632,194.92,194.91,0.03]
[1755445642556,11.14216632,194.92,194.91,0.74]
[1755445643669,16.27247619,194.92,194.91,0.03]
[1755445644987,12.82591292,194.92,194.91,0.03]
[1755445645185,16.27440955,194.92,194.91,0.74]
[1755445645394,12.82591292,194.92,194.91,0.74]
[1755445645679,3.83091325,194.92,194.91,0.74]
[1755445645855,7.69560305,194.92,194.91,0.74]
[1755445646060,12.82591292,194.92,194.91,0.74]
[1755445647151,3.8646898,194.93,194.91,0.74]
[1755445647469,3.9246898,194.94,194.91,0.74]
[1755445648478,3.8646898,194.93,194.92,0.71]
[1755445648681,3.8646898,194.93,194.91,0.03]
[1755445648883,3.8646898,194.93,194.92,0.71]
[1755445650285,7.70092148,194.93,194.92,0.71]
[1755445653862,3.83623168,194.93,194.92,0.71]
[1755445654074,7.70092148,194.93,194.92,0.71]
[1755445654458,0.06,194.94,194.92,4.5746898]
[1755445654680,0.06,194.94,194.93,4.5746898]
[1755445654881,0.06,194.94,194.93,0.71]
[1755445656663,0.06,194.94,194.93,5.84004668]
[1755445658492,0.06,194.94,194.93,0.71]
[1755445660796,4.5246898,194.94,194.91,0.03]
[1755445661103,3.8646898,194.92,194.91,0.74]
[1755445662768,3.8646898,194.93,194.91,0.74]
[1755445662965,3.9246898,194.94,194.91,5.87057308]
[1755445663197,3.9246898,194.94,194.92,0.71]
[1755445665424,3.8646898,194.93,194.92,0.71]
[1755445665722,3.8646898,194.93,194.91,0.03]
[1755445666102,3.8646898,194.92,194.91,0.03]
[1755445667120,3.8646898,194.92,194.91,0.71]
[1755445667299,3.8646898,194.93,194.91,0.71]
[1755445667620,3.8646898,194.93,194.92,0.68]
[1755445668521,3.8646898,194.93,194.91,0.03]
[1755445668707,3.8646898,194.93,194.92,0.68]
[1755445668903,3.9246898,194.94,194.92,0.68]
[1755445669111,0.06,194.94,194.93,0.68]
[1755445670312,0.06,194.93,194.91,5.16057066]
[1755445670514,0.06,194.93,194.92,0.68]
[1755445671025,0.06,194.93,194.91,0.03]
[1755445671314,0.06,194.93,194.91,0.71]
[1755445671520,3.9246898,194.93,194.91,0.71]
[1755445671694,3.8646898,194.92,194.91,0.03]
[1755445673022,3.9246898,194.93,194.91,0.03]
[1755445673428,3.9246898,194.93,194.91,0.71]
[1755445673806,3.9246898,194.93,194.91,0.03]
[1755445675513,4.4646898,194.92,194.91,0.03]
[1755445675930,8.30094157,194.92,194.91,0.03]
[1755445676131,7.70094157,194.92,194.91,0.03]
[1755445677005,3.8646898,194.92,194.91,0.03]
[1755445677212,7.70146639,194.92,194.91,0.03]
[1755445677404,12.83177626,194.92,194.91,0.03]
[1755445677601,12.83199251,194.92,194.91,0.03]
[1755445679230,8.96730271,194.92,194.91,0.03]
[1755445679414,12.83199251,194.92,194.91,0.03]
[1755445679902,31.99168047,194.92,194.91,0.03]
[1755445680102,31.99223372,194.92,194.91,0.03]
[1755445680307,15.10621557,194.91,194.89,0.03]
[1755445680530,37.15570828,194.9,194.89,0.03]
[1755445680713,11.15570828,194.9,194.89,0.03]
[1755445681036,33.70223589,194.9,194.89,0.03]
[1755445681405,7.70223589,194.9,194.89,0.03]
[1755445681725,11.72615002,194.9,194.89,0.03]
[1755445682036,16.85698634,194.9,194.89,0.03]
[1755445682218,16.85680452,194.9,194.89,0.03]
[1755445682600,31.96302009,194.9,194.89,0.03]
[1755445683631,57.96302009,194.9,194.89,0.03]
[1755445684438,31.96302009,194.9,194.89,0.03]
[1755445684612,68.30302009,194.9,194.89,0.03]
[1755445685132,64.46565582,194.9,194.89,0.03]
[1755445685305,68.30166914,194.9,194.89,0.03]
[1755445685503,67.73166914,194.9,194.89,0.03]
[1755445685706,7.28817974,194.9,194.89,0.03]
[1755445685930,7.69895541,194.9,194.89,0.71]
[1755445686118,12.82979173,194.9,194.89,0.03]
[1755445686303,54.5060073,194.9,194.89,0.03]
[1755445686514,58.01675489,194.9,194.89,0.03]
[1755445687122,57.44675489,194.9,194.89,0.03]
[1755445687328,58.01675489,194.9,194.89,0.03]
[1755445688347,58.01648658,194.9,194.89,0.03]
[1755445688952,57.44648658,194.9,194.89,0.03]
[1755445689138,42.34027101,194.9,194.89,0.71]
[1755445689454,42.34027101,194.9,194.89,0.03]
[1755445689839,42.33910978,194.9,194.89,0.03]
[1755445691256,57.44532535,194.9,194.89,0.03]
[1755445691643,58.01532535,194.9,194.89,0.03]
[1755445693343,57.44532535,194.9,194.89,0.03]
[1755445693763,53.99573899,194.9,194.89,0.03]
[1755445694062,7.7586871,194.9,194.89,0.71]
[1755445694237,12.88952342,194.9,194.89,0.71]
[1755445694434,9.05552612,194.9,194.89,0.71]
[1755445694640,9.05552612,194.9,194.89,0.03]
[1755445696841,24.73174169,194.9,194.89,0.03]
[1755445697266,0.06,194.9,194.89,0.74]
[1755445697446,3.9246898,194.9,194.89,0.74]
[1755445698450,7.7537419,194.9,194.89,0.74]
[1755445698663,7.7537419,194.9,194.89,0.03]
[1755445698975,12.88457822,194.9,194.89,0.03]
[1755445699171,7.7537419,194.9,194.89,0.03]
[1755445699579,3.9246898,194.9,194.89,0.03]
[1755445699958,24.16174169,194.9,194.89,0.03]
[1755445700773,0.06,194.9,194.89,0.74]
[1755445701272,3.9246898,194.9,194.89,0.74]
[1755445701976,3.9246898,194.9,194.89,0.03]
[1755445702275,19.03090537,194.9,194.89,0.03]
[1755445702478,22.8608401,194.9,194.89,0.03]
[1755445702858,27.99167642,194.9,194.89,0.03]
[1755445705281,31.44213613,194.9,194.89,0.03]
[1755445709767,31.44213613,194.9,194.89,0.74]
[1755445709982,27.6122014,194.9,194.89,0.74]
[1755445710280,31.44533933,194.9,194.89,0.03]
[1755445710589,11.20828744,194.9,194.89,0.74]
[1755445711557,7.75782773,194.9,194.89,0.74]
[1755445712184,11.20828744,194.9,194.89,0.74]
[1755445715390,7.75782773,194.9,194.89,0.74]
[1755445715769,12.88866405,194.9,194.89,0.74]
[1755445716363,16.34466538,194.9,194.89,0.03]
[1755445719190,16.35170312,194.9,194.89,0.03]
[1755445719689,16.35272579,194.9,194.89,0.03]
[1755445720572,16.35272579,194.9,194.89,0.74]
[1755445721601,16.35272579,194.9,194.89,0.03]
[1755445722784,16.35272579,194.9,194.89,0.74]
[1755445722999,7.35719967,194.9,194.89,0.74]
[1755445723169,11.22188947,194.9,194.89,0.74]
[1755445724400,7.35719967,194.9,194.89,0.74]
[1755445724574,11.22188947,194.9,194.89,0.74]
[1755445725770,11.22188947,194.9,194.89,0.03]
[1755445725974,11.22188947,194.9,194.89,0.7]
[1755445727197,3.90119834,194.9,194.89,0.7]
[1755445727780,3.90119834,194.9,194.89,5.83109959]
[1755445728102,3.90344029,194.9,194.89,5.83109959]
[1755445728405,0.06,194.9,194.89,5.83109959]
[1755445733084,0.06,194.9,194.89,9.69578939]
[1755445740139,0.06,194.9,194.89,5.83109959]
[1755445740345,0.06,194.9,194.89,36.33]
[1755445740634,3.9246898,194.9,194.89,36.33]
[1755445740836,0.06,194.9,194.89,37.0]
[1755445741141,0.06,194.9,194.89,45.99578939]
[1755445741327,0.06,194.9,194.89,71.99578939]
[1755445741539,0.06,194.92,194.91,26.0]
[1755445741839,0.06,194.92,194.91,30.3777471]
[1755445742129,0.06,194.92,194.91,36.17832018]
[1755445750113,0.06,194.92,194.91,35.66526288]
[1755445750514,0.06,194.92,194.91,34.99526288]
[1755445750824,0.06,194.92,194.91,31.80057308]
[1755445751024,0.06,194.92,194.91,35.66526288]
[1755445751422,0.06,194.92,194.91,34.99526288]
[1755445752346,0.06,194.92,194.91,35.66526288]
[1755445752848,0.06,194.92,194.91,71.96526288]
[1755445754437,0.06,194.92,194.91,71.29526288]
[1755445755146,0.06,194.92,194.91,71.97526288]
[1755445757043,0.06,194.92,194.91,71.29526288]
[1755445758848,0.06,194.92,194.91,71.97526288]
[1755445762153,0.06,194.96,194.94,26.0]
[1755445762452,1e-08,194.96,194.95,65.26791699]
[1755445762840,1e-08,194.96,194.95,65.43496496]
[1755445763157,1e-08,194.96,194.95,67.48935496]
[1755445764357,1e-08,194.96,194.95,74.01162499]
[1755445766153,1e-08,194.97,194.95,89.63079259]
[1755445766336,1e-08,194.97,194.96,8.99697189]
[1755445766536,1e-08,194.97,194.96,9.67697189]
[1755445766731,1e-08,194.97,194.96,18.99697189]
[1755445767056,0.06,194.99,194.96,34.78318746]
[1755445767271,0.06,194.99,194.98,29.86771461]
[1755445767964,0.06,194.99,194.98,30.54771461]
[1755445768762,0.06,194.99,194.98,35.67644576]
[1755445768933,1e-08,195.0,194.99,7.73542922]
[1755445769132,1e-08,195.0,194.99,44.52827603]
[1755445769333,1e-08,195.0,194.99,45.20827603]
[1755445769542,1e-08,195.0,194.99,41.34056142]
[1755445769737,1e-08,195.0,194.99,40.82771461]
[1755445771067,1e-08,195.0,194.99,45.95618273]
[1755445771775,1e-08,195.0,194.99,48.01004573]
[1755445774458,1e-08,195.0,194.99,48.52289254]
[1755445776242,1e-08,195.0,194.99,48.01004573]
[1755445776473,1e-08,195.0,194.99,48.52289254]
[1755445777546,1e-08,195.0,194.99,46.46902954]
[1755445778076,1e-08,195.0,194.99,9.50902954]
[1755445778242,1e-08,195.0,194.99,8.99618273]
[1755445778447,1e-08,195.0,194.99,45.93618273]
[1755445778954,1e-08,195.0,194.99,9.67618273]
[1755445779160,1e-08,195.0,194.99,45.93618273]
[1755445779947,1e-08,195.01,195.0,15.10621557]
[1755445780146,1e-08,195.01,195.0,8.92824973]
[1755445780348,1e-08,195.01,195.0,4.54771461]
[1755445781160,1e-08,195.01,195.0,9.67591973]
[1755445782476,1e-08,195.01,195.0,18.736001]
[1755445782860,1e-08,195.01,195.0,33.84221657]
[1755445783065,1e-08,195.01,195.0,35.89597357]
[1755445783778,1e-08,195.01,195.0,32.02825896]
[1755445784076,1e-08,195.01,195.0,16.24204339]
[1755445784376,1e-08,195.01,195.0,52.50204339]
[1755445784786,1e-08,195.01,195.0,50.44828639]
[1755445788877,1e-08,195.01,195.0,51.6411069]
[1755445790262,1e-08,195.01,195.0,50.44828639]
[1755445790592,1e-08,195.01,195.0,46.58057178]
[1755445790777,1e-08,195.01,195.0,50.44828639]
[1755445791758,0.63000001,195.01,195.0,45.25591973]
[1755445792188,1e-08,195.01,195.0,45.25591973]
[1755445793283,0.63000001,195.01,195.0,45.25591973]
[1755445793668,0.63000001,195.01,195.0,8.99591973]
[1755445793871,0.63000001,195.01,195.0,41.36820512]
[1755445798561,0.63000001,195.01,195.0,36.24]
[1755445800002,1e-08,195.01,195.0,36.24]
[1755445800175,1e-08,195.01,195.0,40.10771461]
[1755445800499,1e-08,195.01,195.0,45.23591973]
[1755445800701,1e-08,195.01,195.0,41.36820512]
[1755445800910,1e-08,195.01,195.0,45.91591973]
[1755445801072,1e-08,195.01,195.0,71.91591973]
[1755445801429,1e-08,195.01,195.0,45.91591973]
[1755445802485,1e-08,195.01,195.0,45.94591973]
[1755445805584,1e-08,195.01,195.0,42.07820512]
[1755445805800,1e-08,195.01,195.0,45.94591973]
[1755445807611,1e-08,195.01,195.0,5.15820512]
[1755445807903,0.63000001,195.01,195.0,41.39820512]
[1755445810189,4.49771462,195.01,195.0,36.27]
[1755445810380,4.49771462,195.01,195.0,41.39820512]
[1755445811978,4.49771462,195.01,195.0,36.27]
[1755445812183,4.49771462,195.01,195.0,0.03]
[1755445812379,0.63000001,195.01,195.0,36.25]
[1755445812578,4.49771462,195.01,195.0,41.37820512]
[1755445813696,4.49771462,195.01,195.0,36.25]
[1755445814884,3.86771462,195.01,195.0,36.25]
[1755445815487,0.63000001,195.01,195.0,36.25]
[1755445815686,4.49771462,195.01,195.0,36.25]
[1755445816895,19.60393019,195.01,195.0,36.25]
[1755445817098,19.60393019,195.01,195.0,0.03]
[1755445817430,23.44035052,195.01,195.0,0.03]
[1755445817591,28.56829267,195.01,195.0,0.03]
[1755445818798,23.44035052,195.01,195.0,0.03]
[1755445820119,23.43701436,195.01,195.0,0.03]
[1755445820322,7.70079879,195.01,195.0,0.03]
[1755445820528,3.86771462,195.01,195.0,0.03]
[1755445821018,1e-08,195.01,195.0,0.03]
[1755445823618,1e-08,195.01,195.0,0.72]
[1755445824009,1e-08,195.01,195.0,0.03]
[1755445826049,1e-08,195.01,195.0,0.72]
[1755445826332,1e-08,195.01,195.0,4.58771461]
[1755445827436,1e-08,195.01,195.0,32.64178761]
[1755445829235,1e-08,195.01,195.0,37.76999273]
[1755445830212,1e-08,195.01,195.0,11.76999273]
[1755445830438,1e-08,195.01,195.0,37.76999273]
[1755445830745,1e-08,195.01,195.0,11.76999273]
[1755445831313,0.06,195.05,195.02,26.0]
[1755445831615,0.06,195.05,195.04,3.86771461]
[1755445832340,0.06,195.05,195.04,6.61126061]
[1755445832718,0.06,195.05,195.04,11.73841401]
[1755445834750,0.06,195.05,195.04,7.1806994]
[1755445834915,0.06,195.05,195.04,5.1271534]
[1755445835228,0.06,195.05,195.04,41.3471534]
[1755445836257,0.06,195.05,195.01,5.12794215]
[1755445836258,4.55771461,195.05,195.01,5.12794215]
[1755445836545,3.86771461,195.02,195.0,4.587714]